[Event "*** Titled Tuesday Blitz"]
[Site "Chess.com"]
[Date "2021.02.16"]
[Round "2"]
[White "LubovMarkelova"]
[Black "anon481216"]
[Result "0-1"]
[WhiteElo "2247"]
[BlackElo "2456"]
[TimeControl "180+1"]
[EndTime "10:18:01 PST"]
[Termination "anon481216 won by resignation"]

1. d4 {[%clk 0:03:00.9]} 1... d5 {[%clk 0:02:58.2]} 2. Nf3 {[%clk 0:03:00.2]}
2... Nf6 {[%clk 0:02:57.9]} 3. Bf4 {[%clk 0:02:59.5]} 3... c5 {[%clk 0:02:57.7]}
4. e3 {[%clk 0:02:59]} 4... Nc6 {[%clk 0:02:57.7]} 5. Nbd2 {[%clk 0:02:59.2]}
5... e6 {[%clk 0:02:55.8]} 6. c3 {[%clk 0:02:55.1]} 6... Bd6 {[%clk 0:02:52.7]}
7. Bg3 {[%clk 0:02:54.5]} 7... O-O {[%clk 0:02:51.9]} 8. Bd3 {[%clk 0:02:52.1]}
8... b6 {[%clk 0:02:37.9]} 9. e4 {[%clk 0:02:45.5]} 9... Be7 {[%clk 0:02:36.4]}
10. e5 {[%clk 0:02:44.8]} 10... Nh5 {[%clk 0:02:34.1]} 11. Nf1 {[%clk
0:02:43.9]} 11... cxd4 {[%clk 0:02:10.4]} 12. Nxd4 {[%clk 0:02:24.4]} 12... Nxd4
{[%clk 0:02:09.8]} 13. Qxh5 {[%clk 0:02:23.9]} 13... g6 {[%clk 0:02:04.9]} 14.
Qg4 {[%clk 0:02:13]} 14... Nf5 {[%clk 0:01:59.8]} 15. O-O-O {[%clk 0:01:40.6]}
15... b5 {[%clk 0:01:45.6]} 16. Bxf5 {[%clk 0:01:28.2]} 16... exf5 {[%clk
0:01:45.2]} 17. Qd4 {[%clk 0:01:27.2]} 17... Be6 {[%clk 0:01:33.6]} 18. Ne3
{[%clk 0:01:25.2]} 18... Qa5 {[%clk 0:01:15]} 19. Nxd5 {[%clk 0:01:20.3]} 19...
Bg5+ {[%clk 0:01:05.6]} 20. f4 {[%clk 0:01:17.1]} 20... Rfd8 {[%clk 0:00:59.4]}
21. fxg5 {[%clk 0:00:28.7]} 21... Rxd5 {[%clk 0:00:58.9]} 22. Qb4 {[%clk
0:00:20.4]} 22... Qxa2 {[%clk 0:00:55.6]} 23. Rxd5 {[%clk 0:00:20]} 23... Bxd5
{[%clk 0:00:53.8]} 24. Rd1 {[%clk 0:00:19.7]} 24... Bb3 {[%clk 0:00:49.2]} 25.
Rd7 {[%clk 0:00:12.8]} 25... Qa1+ {[%clk 0:00:48.8]} 26. Kd2 {[%clk 0:00:13.3]}
26... Qd1+ {[%clk 0:00:46.1]} 0-1

[Event "*** Titled Tuesday Blitz"]
[Site "Chess.com"]
[Date "2021.02.16"]
[Round "2"]
[White "Violord"]
[Black "Yurovskykh_Oleksandr"]
[Result "1-0"]
[WhiteElo "2717"]
[BlackElo "2477"]
[TimeControl "180+1"]
[EndTime "10:18:08 PST"]
[Termination "Violord won by resignation"]

1. e4 {[%clk 0:02:59.4]} 1... Nf6 {[%clk 0:02:56.1]} 2. e5 {[%clk 0:02:58.4]}
2... Nd5 {[%clk 0:02:54.7]} 3. d4 {[%clk 0:02:58.9]} 3... d6 {[%clk 0:02:51.8]}
4. Nf3 {[%clk 0:02:59.4]} 4... dxe5 {[%clk 0:02:49.7]} 5. Nxe5 {[%clk
0:02:59.3]} 5... c6 {[%clk 0:02:49.7]} 6. Be2 {[%clk 0:02:58]} 6... Bf5 {[%clk
0:02:48.8]} 7. O-O {[%clk 0:02:56.9]} 7... Nd7 {[%clk 0:02:48.2]} 8. Nf3 {[%clk
0:02:56.7]} 8... e6 {[%clk 0:02:44.6]} 9. c4 {[%clk 0:02:56.2]} 9... N5f6 {[%clk
0:02:44.5]} 10. Nh4 {[%clk 0:02:52.4]} 10... Bxb1 {[%clk 0:02:36]} 11. Rxb1
{[%clk 0:02:51.5]} 11... Bd6 {[%clk 0:02:35.1]} 12. Nf3 {[%clk 0:02:50.7]} 12...
O-O {[%clk 0:02:35]} 13. b4 {[%clk 0:02:49.9]} 13... Re8 {[%clk 0:02:28.8]} 14.
h3 {[%clk 0:02:44.8]} 14... e5 {[%clk 0:02:24.2]} 15. c5 {[%clk 0:02:41]} 15...
Bc7 {[%clk 0:02:23.1]} 16. Bc4 {[%clk 0:02:38]} 16... exd4 {[%clk 0:01:54.1]}
17. Qb3 {[%clk 0:02:36.9]} 17... Nd5 {[%clk 0:01:23]} 18. Bxd5 {[%clk
0:02:31.9]} 18... cxd5 {[%clk 0:01:18.8]} 19. Qxd5 {[%clk 0:02:30.2]} 19... Rb8
{[%clk 0:00:44.9]} 20. Bg5 {[%clk 0:02:23.5]} 20... Nf6 {[%clk 0:00:37.5]} 21.
Qxd8 {[%clk 0:02:13.9]} 21... Rbxd8 {[%clk 0:00:37.2]} 22. Rfd1 {[%clk
0:02:12.5]} 22... d3 {[%clk 0:00:35.9]} 23. Rb3 {[%clk 0:02:00.5]} 23... d2
{[%clk 0:00:36.2]} 24. Kf1 {[%clk 0:01:58.3]} 24... Re4 {[%clk 0:00:29.4]} 25.
Bxf6 {[%clk 0:01:55.6]} 25... gxf6 {[%clk 0:00:29.3]} 26. Rxd2 {[%clk
0:01:53.3]} 26... Rxd2 {[%clk 0:00:29.4]} 27. Nxd2 {[%clk 0:01:52.9]} 27... Rd4
{[%clk 0:00:29.8]} 28. Ke2 {[%clk 0:01:49.4]} 28... Be5 {[%clk 0:00:29.7]} 29.
g3 {[%clk 0:01:46.2]} 29... f5 {[%clk 0:00:28.5]} 30. a3 {[%clk 0:01:38.8]}
30... Bf6 {[%clk 0:00:26.4]} 31. Rd3 {[%clk 0:01:37]} 31... Kf8 {[%clk
0:00:23.2]} 32. Rxd4 {[%clk 0:01:34.1]} 32... Bxd4 {[%clk 0:00:24.1]} 33. Nc4
{[%clk 0:01:33.7]} 33... b5 {[%clk 0:00:19.8]} 34. cxb6 {[%clk 0:01:31.6]} 34...
axb6 {[%clk 0:00:20.7]} 35. a4 {[%clk 0:01:31.6]} 35... Ke7 {[%clk 0:00:20.1]}
36. f3 {[%clk 0:01:31.6]} 36... h5 {[%clk 0:00:19.8]} 37. Kd3 {[%clk 0:01:25.5]}
37... Bf2 {[%clk 0:00:19.2]} 38. Ke2 {[%clk 0:01:23.2]} 38... Bd4 {[%clk
0:00:18.8]} 39. Ne3 {[%clk 0:01:20.8]} 39... Ke6 {[%clk 0:00:18.5]} 40. Kd3
{[%clk 0:01:21.4]} 40... Bb2 {[%clk 0:00:17.5]} 41. Nc4 {[%clk 0:01:21.1]} 1-0

[Event "*** Titled Tuesday Blitz"]
[Site "Chess.com"]
[Date "2021.02.16"]
[Round "2"]
[White "Piotrek1979"]
[Black "Funo09"]
[Result "0-1"]
[WhiteElo "2414"]
[BlackElo "2766"]
[TimeControl "180+1"]
[EndTime "10:18:14 PST"]
[Termination "Funo09 won by resignation"]

1. e4 {[%clk 0:01:24.5]} 1... c6 {[%clk 0:02:38.1]} 2. d4 {[%clk 0:01:23.4]}
2... d5 {[%clk 0:02:38.8]} 3. exd5 {[%clk 0:01:24]} 3... cxd5 {[%clk 0:02:38.5]}
4. Bd3 {[%clk 0:01:23.8]} 4... Nc6 {[%clk 0:02:37.7]} 5. c3 {[%clk 0:01:24.7]}
5... Nf6 {[%clk 0:02:37.9]} 6. Bf4 {[%clk 0:01:23.6]} 6... g6 {[%clk 0:02:38.4]}
7. Nf3 {[%clk 0:01:22.8]} 7... Bf5 {[%clk 0:02:38.9]} 8. O-O {[%clk 0:01:23.7]}
8... Bg7 {[%clk 0:02:38.1]} 9. Re1 {[%clk 0:01:23.6]} 9... Bxd3 {[%clk
0:02:37.8]} 10. Qxd3 {[%clk 0:01:24.5]} 10... O-O {[%clk 0:02:38.4]} 11. Nbd2
{[%clk 0:01:24.2]} 11... Qb6 {[%clk 0:02:38.9]} 12. Rab1 {[%clk 0:01:23.6]}
12... Rac8 {[%clk 0:02:37.3]} 13. h3 {[%clk 0:01:18.2]} 13... e6 {[%clk
0:02:37.6]} 14. Ne5 {[%clk 0:01:17.5]} 14... Nxe5 {[%clk 0:02:33]} 15. Bxe5
{[%clk 0:01:17.1]} 15... a5 {[%clk 0:02:29]} 16. a4 {[%clk 0:01:16]} 16... Qc6
{[%clk 0:02:28.5]} 17. Qb5 {[%clk 0:01:15.6]} 17... Nd7 {[%clk 0:02:15.7]} 18.
Bxg7 {[%clk 0:01:14.9]} 18... Kxg7 {[%clk 0:02:15.7]} 19. Qxc6 {[%clk
0:01:14.6]} 19... Rxc6 {[%clk 0:02:13.6]} 20. Ra1 {[%clk 0:01:14]} 20... Rfc8
{[%clk 0:02:08]} 21. Ra2 {[%clk 0:01:13.6]} 21... Nb6 {[%clk 0:02:04]} 22. Kf1
{[%clk 0:01:12.8]} 22... h5 {[%clk 0:02:03.4]} 23. g3 {[%clk 0:01:11.5]} 23...
Kf6 {[%clk 0:02:00]} 24. Ke2 {[%clk 0:01:11.6]} 24... R8c7 {[%clk 0:01:49]} 25.
Kd3 {[%clk 0:01:11.2]} 25... Nc8 {[%clk 0:01:49.4]} 26. Rc1 {[%clk 0:01:09.9]}
26... Nd6 {[%clk 0:01:49.6]} 27. b3 {[%clk 0:01:09.1]} 27... g5 {[%clk
0:01:45.2]} 28. Rac2 {[%clk 0:01:08.2]} 28... Rb6 {[%clk 0:01:41.4]} 29. c4
{[%clk 0:01:07.6]} 29... dxc4+ {[%clk 0:01:39.3]} 30. bxc4 {[%clk 0:01:07.4]}
30... Rb4 {[%clk 0:01:39.7]} 31. Rb1 {[%clk 0:00:51.8]} 31... Rxa4 {[%clk
0:01:29.1]} 32. c5 {[%clk 0:00:51.5]} 32... Nf5 {[%clk 0:01:25.9]} 33. Rc4
{[%clk 0:00:50.7]} 33... Ra3+ {[%clk 0:01:20.3]} 34. Rc3 {[%clk 0:00:50.2]}
34... Ra2 {[%clk 0:01:14.3]} 35. Ne4+ {[%clk 0:00:45.1]} 35... Kg6 {[%clk
0:01:14.1]} 36. Rcb3 {[%clk 0:00:43.6]} 36... Rd7 {[%clk 0:01:12.3]} 37. Nd6
{[%clk 0:00:36.3]} 37... Nxd6 {[%clk 0:01:09.6]} 38. cxd6 {[%clk 0:00:37.2]}
38... Rxf2 {[%clk 0:01:07.8]} 39. Rb6 {[%clk 0:00:35.6]} 39... Rf3+ {[%clk
0:01:00.6]} 40. Ke4 {[%clk 0:00:35.2]} 40... Rxg3 {[%clk 0:01:00.3]} 41. Rc1
{[%clk 0:00:35.3]} 41... f5+ {[%clk 0:01:00.4]} 0-1

[Event "*** Titled Tuesday Blitz"]
[Site "Chess.com"]
[Date "2021.02.16"]
[Round "2"]
[White "BabyBoss31"]
[Black "DamianoLew95"]
[Result "0-1"]
[WhiteElo "2326"]
[BlackElo "2589"]
[TimeControl "180+1"]
[EndTime "10:18:15 PST"]
[Termination "DamianoLew95 won by resignation"]

1. d4 {[%clk 0:03:00.9]} 1... Nf6 {[%clk 0:02:55.1]} 2. Bg5 {[%clk 0:03:00.4]}
2... d5 {[%clk 0:02:54.1]} 3. Bxf6 {[%clk 0:03:00]} 3... exf6 {[%clk 0:02:54.1]}
4. e3 {[%clk 0:03:00.2]} 4... c6 {[%clk 0:02:52.3]} 5. c4 {[%clk 0:02:57.7]}
5... dxc4 {[%clk 0:02:49.3]} 6. Bxc4 {[%clk 0:02:58.6]} 6... Bd6 {[%clk
0:02:48.9]} 7. Nc3 {[%clk 0:02:49.7]} 7... O-O {[%clk 0:02:42.3]} 8. Nf3 {[%clk
0:02:46.3]} 8... Nd7 {[%clk 0:02:39.2]} 9. O-O {[%clk 0:02:46.1]} 9... Nb6
{[%clk 0:02:38.6]} 10. Bd3 {[%clk 0:02:39.2]} 10... Bg4 {[%clk 0:02:36.5]} 11.
Qc2 {[%clk 0:02:35.7]} 11... h6 {[%clk 0:02:26.9]} 12. Nd2 {[%clk 0:02:29.9]}
12... Re8 {[%clk 0:02:24.8]} 13. h3 {[%clk 0:02:10]} 13... Be6 {[%clk
0:02:19.4]} 14. Nde4 {[%clk 0:01:57.2]} 14... Bb8 {[%clk 0:02:09.3]} 15. Nc5
{[%clk 0:01:44.4]} 15... Bc8 {[%clk 0:02:04.8]} 16. a4 {[%clk 0:01:40.3]} 16...
Qd6 {[%clk 0:02:00.6]} 17. g3 {[%clk 0:01:03.2]} 17... Bxh3 {[%clk 0:01:51.4]}
18. Rfe1 {[%clk 0:01:03.1]} 18... Bc8 {[%clk 0:01:31]} 19. Bf5 {[%clk
0:01:02.2]} 19... Qc7 {[%clk 0:01:26.5]} 20. Bxc8 {[%clk 0:00:56.1]} 20... Qxc8
{[%clk 0:01:06.1]} 21. Kg2 {[%clk 0:00:55.4]} 21... Bd6 {[%clk 0:01:05]} 22.
N3e4 {[%clk 0:00:46.5]} 22... Bf8 {[%clk 0:01:00.2]} 23. Qb3 {[%clk 0:00:38.4]}
23... Rb8 {[%clk 0:00:53.1]} 24. Rac1 {[%clk 0:00:27.1]} 24... Nd5 {[%clk
0:00:44.1]} 25. a5 {[%clk 0:00:17.9]} 25... b6 {[%clk 0:00:39.5]} 26. axb6
{[%clk 0:00:16.2]} 26... axb6 {[%clk 0:00:40]} 0-1

[Event "*** Titled Tuesday Blitz"]
[Site "Chess.com"]
[Date "2021.02.16"]
[Round "2"]
[White "IMAghasiyevKamal"]
[Black "ellennilssen"]
[Result "1-0"]
[WhiteElo "2526"]
[BlackElo "2221"]
[TimeControl "180+1"]
[EndTime "10:18:18 PST"]
[Termination "IMAghasiyevKamal won by resignation"]

1. d4 {[%clk 0:03:00.9]} 1... Nf6 {[%clk 0:02:59.1]} 2. c4 {[%clk 0:03:00.1]}
2... e6 {[%clk 0:02:54.5]} 3. Nc3 {[%clk 0:02:58.5]} 3... d5 {[%clk 0:02:54]} 4.
cxd5 {[%clk 0:02:55.8]} 4... exd5 {[%clk 0:02:54]} 5. Bg5 {[%clk 0:02:55.6]}
5... Be7 {[%clk 0:02:54]} 6. Qc2 {[%clk 0:02:55.6]} 6... c6 {[%clk 0:02:52.1]}
7. e3 {[%clk 0:02:55.8]} 7... Nbd7 {[%clk 0:02:51.3]} 8. Bd3 {[%clk 0:02:55.9]}
8... O-O {[%clk 0:02:51.5]} 9. Nge2 {[%clk 0:02:56]} 9... Re8 {[%clk 0:02:51.2]}
10. O-O {[%clk 0:02:53.1]} 10... Nf8 {[%clk 0:02:50.9]} 11. f3 {[%clk
0:02:36.7]} 11... h6 {[%clk 0:02:48.1]} 12. Bh4 {[%clk 0:02:35]} 12... Be6
{[%clk 0:02:40.8]} 13. Rad1 {[%clk 0:02:34.1]} 13... Rc8 {[%clk 0:02:22.3]} 14.
Kh1 {[%clk 0:02:30.7]} 14... N6h7 {[%clk 0:02:17.6]} 15. Bf2 {[%clk 0:02:29.4]}
15... Bd6 {[%clk 0:02:14.3]} 16. e4 {[%clk 0:02:26.1]} 16... dxe4 {[%clk
0:02:13.7]} 17. fxe4 {[%clk 0:02:25.9]} 17... Bb8 {[%clk 0:02:11.7]} 18. Bg1
{[%clk 0:02:25.4]} 18... Ng5 {[%clk 0:02:07.7]} 19. Nf4 {[%clk 0:02:19.9]} 19...
Bg4 {[%clk 0:02:05.3]} 20. Rde1 {[%clk 0:02:15.1]} 20... Nge6 {[%clk 0:02:03.5]}
21. Nxe6 {[%clk 0:02:09.4]} 21... Bxe6 {[%clk 0:02:00.8]} 22. e5 {[%clk
0:01:53.4]} 22... a6 {[%clk 0:01:52.9]} 23. a3 {[%clk 0:01:42.2]} 23... Ba7
{[%clk 0:01:49.7]} 24. Qe2 {[%clk 0:01:34.9]} 24... Bxd4 {[%clk 0:01:47]} 25.
Rd1 {[%clk 0:01:33.6]} 25... c5 {[%clk 0:01:43.3]} 26. Ne4 {[%clk 0:01:31.4]}
26... Bb3 {[%clk 0:01:39.2]} 27. Bc2 {[%clk 0:01:28.7]} 27... Bxc2 {[%clk
0:01:36.2]} 28. Qxc2 {[%clk 0:01:28.9]} 28... Re6 {[%clk 0:01:23.5]} 29. Nd6
{[%clk 0:01:19.6]} 29... Rc7 {[%clk 0:01:21.7]} 30. Bxd4 {[%clk 0:01:15]} 30...
cxd4 {[%clk 0:01:22.6]} 31. Qb3 {[%clk 0:01:11.8]} 31... Qe7 {[%clk 0:01:08.9]}
32. Rxd4 {[%clk 0:01:07.3]} 32... Qg5 {[%clk 0:00:57.3]} 33. Rd5 {[%clk
0:00:41.6]} 33... Rc1 {[%clk 0:00:52]} 34. Rdd1 {[%clk 0:00:41.5]} 34... Rxd1
{[%clk 0:00:50]} 35. Qxd1 {[%clk 0:00:40.8]} 35... Qxe5 {[%clk 0:00:46]} 36.
Nxf7 {[%clk 0:00:40.2]} 36... Rf6 {[%clk 0:00:42.9]} 37. Nxe5 {[%clk 0:00:39.9]}
37... Rxf1+ {[%clk 0:00:31]} 38. Qxf1 {[%clk 0:00:39.7]} 1-0

[Event "*** Titled Tuesday Blitz"]
[Site "Chess.com"]
[Date "2021.02.16"]
[Round "2"]
[White "niki_2003"]
[Black "LogoCzar"]
[Result "0-1"]
[WhiteElo "2012"]
[BlackElo "2382"]
[TimeControl "180+1"]
[EndTime "10:18:18 PST"]
[Termination "LogoCzar won by checkmate"]

1. e4 {[%clk 0:03:00.9]} 1... c6 {[%clk 0:02:58.5]} 2. d4 {[%clk 0:02:59.6]}
2... d5 {[%clk 0:02:58.1]} 3. exd5 {[%clk 0:02:59.5]} 3... cxd5 {[%clk
0:02:58.1]} 4. c3 {[%clk 0:02:58.7]} 4... Nf6 {[%clk 0:02:58]} 5. Bd3 {[%clk
0:02:58]} 5... Nc6 {[%clk 0:02:57.5]} 6. Nf3 {[%clk 0:02:56.6]} 6... Bg4 {[%clk
0:02:57.3]} 7. O-O {[%clk 0:02:53.7]} 7... e6 {[%clk 0:02:57.2]} 8. h3 {[%clk
0:02:52.8]} 8... Bh5 {[%clk 0:02:53.3]} 9. Be3 {[%clk 0:02:52.8]} 9... Bd6
{[%clk 0:02:53.2]} 10. Nbd2 {[%clk 0:02:51.9]} 10... O-O {[%clk 0:02:53.1]} 11.
Qc2 {[%clk 0:02:32.9]} 11... Rc8 {[%clk 0:02:47.8]} 12. a3 {[%clk 0:02:31.4]}
12... Bg6 {[%clk 0:02:45.4]} 13. Ne1 {[%clk 0:02:26.4]} 13... b5 {[%clk
0:02:43.7]} 14. b4 {[%clk 0:02:23.9]} 14... e5 {[%clk 0:02:34.9]} 15. Qb3 {[%clk
0:02:00.4]} 15... Bxd3 {[%clk 0:02:18.4]} 16. Nxd3 {[%clk 0:01:58.9]} 16... e4
{[%clk 0:02:18.6]} 17. Nf4 {[%clk 0:01:42.3]} 17... g5 {[%clk 0:02:14.3]} 18.
Ne2 {[%clk 0:01:37.6]} 18... Nh5 {[%clk 0:02:12.6]} 19. f3 {[%clk 0:01:35.6]}
19... exf3 {[%clk 0:02:04.2]} 20. Nxf3 {[%clk 0:01:35]} 20... h6 {[%clk
0:02:02.1]} 21. Kh1 {[%clk 0:01:03.6]} 21... Re8 {[%clk 0:02:01.4]} 22. Qxd5
{[%clk 0:00:39.4]} 22... Rxe3 {[%clk 0:01:59.2]} 23. Nxg5 {[%clk 0:00:39.3]}
23... Qxg5 {[%clk 0:01:45.5]} 24. Qxd6 {[%clk 0:00:19.3]} 24... Rxe2 {[%clk
0:01:44.2]} 25. g4 {[%clk 0:00:19.8]} 25... Qh4 {[%clk 0:01:31.7]} 26. Rf3
{[%clk 0:00:14.7]} 26... Re1+ {[%clk 0:01:28]} 27. Rxe1 {[%clk 0:00:13.7]} 27...
Qxe1+ {[%clk 0:01:28.9]} 28. Kh2 {[%clk 0:00:14.2]} 28... Qe2+ {[%clk
0:01:27.4]} 29. Kg1 {[%clk 0:00:14.7]} 29... Qxf3 {[%clk 0:01:26.5]} 30. Qxh6
{[%clk 0:00:15.6]} 30... Qg3+ {[%clk 0:01:21.4]} 31. Kf1 {[%clk 0:00:16.1]}
31... Qf4+ {[%clk 0:01:19.1]} 32. Qxf4 {[%clk 0:00:14.9]} 32... Nxf4 {[%clk
0:01:20]} 33. Kf2 {[%clk 0:00:15.3]} 33... Nxh3+ {[%clk 0:01:20]} 34. Kg3 {[%clk
0:00:16.2]} 34... Ng5 {[%clk 0:01:20.2]} 35. Kh4 {[%clk 0:00:16.6]} 35... Ne6
{[%clk 0:01:20.4]} 36. g5 {[%clk 0:00:16.6]} 36... Ne7 {[%clk 0:01:20.6]} 37.
Kh5 {[%clk 0:00:17.5]} 37... Rxc3 {[%clk 0:01:18.7]} 38. Kh6 {[%clk 0:00:18.4]}
38... Rxa3 {[%clk 0:01:17.7]} 39. d5 {[%clk 0:00:18.5]} 39... Ng7 {[%clk
0:01:16.6]} 40. g6 {[%clk 0:00:18.1]} 40... fxg6 {[%clk 0:01:14.6]} 41. d6
{[%clk 0:00:17.9]} 41... Nef5+ {[%clk 0:01:12.9]} 42. Kg5 {[%clk 0:00:18.8]}
42... Nxd6 {[%clk 0:01:12.9]} 43. Kxg6 {[%clk 0:00:19.7]} 43... Nf7 {[%clk
0:01:10.6]} 44. Kf6 {[%clk 0:00:20.6]} 44... Re3 {[%clk 0:01:07.2]} 45. Kg6
{[%clk 0:00:19.1]} 45... Re6# {[%clk 0:01:07.1]} 0-1

[Event "*** Titled Tuesday Blitz"]
[Site "Chess.com"]
[Date "2021.02.16"]
[Round "2"]
[White "Iskusnyh"]
[Black "Firouzja2003"]
[Result "0-1"]
[WhiteElo "2599"]
[BlackElo "3079"]
[TimeControl "180+1"]
[EndTime "10:18:22 PST"]
[Termination "Firouzja2003 won on time"]

1. d4 {[%clk 0:03:00.9]} 1... Nf6 {[%clk 0:02:55]} 2. c4 {[%clk 0:03:00.8]} 2...
g6 {[%clk 0:02:54.8]} 3. g3 {[%clk 0:03:00.7]} 3... Bg7 {[%clk 0:02:53.6]} 4.
Bg2 {[%clk 0:03:01.3]} 4... d6 {[%clk 0:02:54.3]} 5. Nc3 {[%clk 0:03:00.2]} 5...
Nc6 {[%clk 0:02:54.4]} 6. Nf3 {[%clk 0:03:00.9]} 6... Bf5 {[%clk 0:02:54.4]} 7.
d5 {[%clk 0:02:43.3]} 7... Na5 {[%clk 0:02:31.3]} 8. Qa4+ {[%clk 0:02:17.4]}
8... c6 {[%clk 0:02:30.9]} 9. Nd4 {[%clk 0:02:12.1]} 9... Bd7 {[%clk 0:02:30.7]}
10. dxc6 {[%clk 0:02:08.5]} 10... bxc6 {[%clk 0:02:30.9]} 11. Nxc6 {[%clk
0:02:05.5]} 11... Nxc6 {[%clk 0:02:30.7]} 12. Bxc6 {[%clk 0:02:05.3]} 12... Rc8
{[%clk 0:02:31.4]} 13. Bxd7+ {[%clk 0:01:51.6]} 13... Qxd7 {[%clk 0:02:32.3]}
14. Qb3 {[%clk 0:00:42.8]} 14... Qc6 {[%clk 0:02:13.9]} 15. O-O {[%clk
0:00:25.4]} 15... Qxc4 {[%clk 0:02:14.4]} 16. Bg5 {[%clk 0:00:23.9]} 16... Nd7
{[%clk 0:01:53.1]} 17. Rfc1 {[%clk 0:00:20.6]} 17... Qxb3 {[%clk 0:01:31.4]} 18.
axb3 {[%clk 0:00:20.1]} 18... h6 {[%clk 0:01:32.2]} 19. Nd5 {[%clk 0:00:17.8]}
19... Rxc1+ {[%clk 0:01:28.9]} 20. Rxc1 {[%clk 0:00:16.7]} 20... Nb6 {[%clk
0:01:29.5]} 21. Nxb6 {[%clk 0:00:15.2]} 21... axb6 {[%clk 0:01:27.1]} 22. Be3
{[%clk 0:00:15.3]} 22... Kd7 {[%clk 0:01:23.4]} 23. Bxb6 {[%clk 0:00:15.2]}
23... Rb8 {[%clk 0:01:23.7]} 24. Rc7+ {[%clk 0:00:13]} 24... Ke6 {[%clk
0:01:24]} 25. Be3 {[%clk 0:00:08.2]} 25... Rxb3 {[%clk 0:01:24.2]} 26. Kg2
{[%clk 0:00:07.5]} 26... Rxb2 {[%clk 0:01:23.6]} 27. Kf3 {[%clk 0:00:07.8]}
27... f5 {[%clk 0:01:20.9]} 28. h4 {[%clk 0:00:07.5]} 28... Rb3 {[%clk 0:01:20]}
29. Kg2 {[%clk 0:00:07.2]} 29... Rb4 {[%clk 0:01:18.3]} 30. Kf3 {[%clk
0:00:05.8]} 30... Ra4 {[%clk 0:01:10.3]} 31. Rb7 {[%clk 0:00:05.4]} 31... Kf6
{[%clk 0:01:10.2]} 32. Rc7 {[%clk 0:00:04.3]} 32... g5 {[%clk 0:01:09.4]} 33.
hxg5+ {[%clk 0:00:03.9]} 33... hxg5 {[%clk 0:01:10.3]} 34. Rb7 {[%clk
0:00:03.1]} 34... Bh6 {[%clk 0:01:09.3]} 35. Kg2 {[%clk 0:00:02.8]} 35... Ke6
{[%clk 0:01:08.9]} 36. Rc7 {[%clk 0:00:02.4]} 36... Ra2 {[%clk 0:01:08.8]} 37.
Kf1 {[%clk 0:00:01.5]} 37... f4 {[%clk 0:01:09.1]} 38. gxf4 {[%clk 0:00:01.2]}
38... gxf4 {[%clk 0:01:10]} 39. Bd4 {[%clk 0:00:01.4]} 39... Kd5 {[%clk
0:01:10.2]} 0-1

[Event "*** Titled Tuesday Blitz"]
[Site "Chess.com"]
[Date "2021.02.16"]
[Round "2"]
[White "Witik"]
[Black "alejogarcia1999"]
[Result "1-0"]
[WhiteElo "2771"]
[BlackElo "2500"]
[TimeControl "180+1"]
[EndTime "10:18:24 PST"]
[Termination "Witik won by resignation"]

1. e4 {[%clk 0:03:00.9]} 1... c5 {[%clk 0:02:59.9]} 2. Nf3 {[%clk 0:03:00.1]}
2... e6 {[%clk 0:03:00.1]} 3. d4 {[%clk 0:03:00.2]} 3... cxd4 {[%clk 0:03:01]}
4. Nxd4 {[%clk 0:03:00.9]} 4... Nc6 {[%clk 0:03:01.6]} 5. Nc3 {[%clk 0:03:00.7]}
5... Nf6 {[%clk 0:03:01.7]} 6. a3 {[%clk 0:02:58.8]} 6... Be7 {[%clk 0:03:00.7]}
7. Be2 {[%clk 0:02:57.3]} 7... O-O {[%clk 0:03:00.6]} 8. O-O {[%clk 0:02:57]}
8... d5 {[%clk 0:03:00.4]} 9. exd5 {[%clk 0:02:56.1]} 9... Nxd5 {[%clk
0:03:00.6]} 10. Nxc6 {[%clk 0:02:41.5]} 10... bxc6 {[%clk 0:02:39.4]} 11. Ne4
{[%clk 0:02:22.5]} 11... f5 {[%clk 0:02:17.5]} 12. Nd2 {[%clk 0:02:21.5]} 12...
e5 {[%clk 0:02:12.5]} 13. Nc4 {[%clk 0:02:13.6]} 13... Bf6 {[%clk 0:02:06.8]}
14. Re1 {[%clk 0:01:44.6]} 14... Rb8 {[%clk 0:01:55.8]} 15. Bf1 {[%clk
0:01:40.9]} 15... e4 {[%clk 0:01:52.7]} 16. f3 {[%clk 0:01:33.5]} 16... Re8
{[%clk 0:01:38.5]} 17. c3 {[%clk 0:01:28.5]} 17... e3 {[%clk 0:01:26.8]} 18. f4
{[%clk 0:01:05.2]} 18... Nxf4 {[%clk 0:01:12.3]} 19. Bxe3 {[%clk 0:00:55.9]}
19... Qc7 {[%clk 0:01:02]} 20. Qd6 {[%clk 0:00:49.4]} 20... Be5 {[%clk
0:00:52.6]} 21. Bxf4 {[%clk 0:00:30]} 21... Bxd6 {[%clk 0:00:43.2]} 22. Rxe8+
{[%clk 0:00:29.6]} 22... Kf7 {[%clk 0:00:41.8]} 23. Bxd6 {[%clk 0:00:16.1]} 1-0

[Event "*** Titled Tuesday Blitz"]
[Site "Chess.com"]
[Date "2021.02.16"]
[Round "2"]
[White "Grineva_Marianna"]
[Black "Zenzo"]
[Result "0-1"]
[WhiteElo "2232"]
[BlackElo "2616"]
[TimeControl "180+1"]
[EndTime "10:18:27 PST"]
[Termination "Zenzo won by resignation"]

1. e4 {[%clk 0:03:00.9]} 1... e5 {[%clk 0:02:59.8]} 2. Nf3 {[%clk 0:02:59.8]}
2... Nc6 {[%clk 0:03:00.2]} 3. Bb5 {[%clk 0:03:00.1]} 3... a6 {[%clk 0:03:00.6]}
4. Ba4 {[%clk 0:03:00]} 4... Nge7 {[%clk 0:03:01.1]} 5. O-O {[%clk 0:02:57.1]}
5... g6 {[%clk 0:03:01.3]} 6. d4 {[%clk 0:02:46]} 6... exd4 {[%clk 0:03:02.2]}
7. Nxd4 {[%clk 0:02:39.5]} 7... Bg7 {[%clk 0:03:02.6]} 8. Be3 {[%clk 0:02:36.3]}
8... O-O {[%clk 0:03:02.1]} 9. c3 {[%clk 0:02:35.6]} 9... b5 {[%clk 0:03:00.8]}
10. Bb3 {[%clk 0:02:34.3]} 10... Na5 {[%clk 0:02:59.4]} 11. Bc2 {[%clk
0:02:25.4]} 11... Nc4 {[%clk 0:02:59.8]} 12. Bc1 {[%clk 0:02:24.4]} 12... c5
{[%clk 0:02:56.3]} 13. Nf3 {[%clk 0:02:20]} 13... d5 {[%clk 0:02:53.3]} 14. exd5
{[%clk 0:02:18.5]} 14... Nxd5 {[%clk 0:02:52.7]} 15. Be4 {[%clk 0:02:11.3]}
15... Bb7 {[%clk 0:02:42.7]} 16. Re1 {[%clk 0:01:59.8]} 16... Re8 {[%clk
0:02:17.8]} 17. Bg5 {[%clk 0:01:45.8]} 17... Qd6 {[%clk 0:02:04.1]} 18. Qc2
{[%clk 0:01:23.3]} 18... Nde3 {[%clk 0:01:49]} 19. Bxe3 {[%clk 0:00:40.8]} 19...
Bxe4 {[%clk 0:01:47.8]} 20. Qe2 {[%clk 0:00:40.2]} 20... Nxe3 {[%clk 0:01:05.1]}
21. fxe3 {[%clk 0:00:29.2]} 21... Bh6 {[%clk 0:01:00.7]} 22. Nbd2 {[%clk
0:00:25.5]} 22... Bd3 {[%clk 0:01:00.6]} 23. Qf2 {[%clk 0:00:25.5]} 23... Re7
{[%clk 0:00:57.8]} 24. e4 {[%clk 0:00:18.8]} 24... Rae8 {[%clk 0:00:55.8]} 25.
Rad1 {[%clk 0:00:16.3]} 25... Bc2 {[%clk 0:00:47.3]} 26. Rc1 {[%clk 0:00:15.6]}
26... Bxe4 {[%clk 0:00:47.3]} 27. Nxe4 {[%clk 0:00:16.1]} 27... Rxe4 {[%clk
0:00:47.7]} 28. Rxe4 {[%clk 0:00:14.8]} 28... Rxe4 {[%clk 0:00:48.6]} 29. h3
{[%clk 0:00:14]} 29... Bxc1 {[%clk 0:00:46.8]} 30. Ng5 {[%clk 0:00:13.5]} 30...
Be3 {[%clk 0:00:40.4]} 31. Nxe4 {[%clk 0:00:13.3]} 31... Bxf2+ {[%clk
0:00:40.6]} 32. Kxf2 {[%clk 0:00:14.2]} 32... Qf4+ {[%clk 0:00:40.1]} 33. Kg1
{[%clk 0:00:12.8]} 33... Qxe4 {[%clk 0:00:39.7]} 0-1